fUSD/lending_fUSD_20240217
["ID","MTS","AMOUNT","RATE_DAILY","PERIOD"]
[314319767,1708181806557,-682.4769,0.00022689,2]
[314319768,1708181806579,-300.0,0.00022699,2]
[314319769,1708181806603,-150.0,0.00022699,2]
[314319770,1708181806629,-116121.36785928,0.000227,2]
[314319771,1708181806651,-100175.93742494,0.00022789,2]
[314319772,1708181806674,-18678.2,0.000229,2]
[314319773,1708181806696,-485.39083298,0.0002292,2]
[314319774,1708181806717,-587.83841187,0.0002292,2]
[314319775,1708181806740,-500.0,0.00022999,2]
[314319776,1708181806767,-500.0,0.00022999,2]
[314319777,1708181806790,-352.27846891,0.00022999,2]
[314319778,1708181806813,-509977.37282596,0.00023,2]
[314319779,1708181895050,166.44,0.00019874,2]
[314319780,1708181905286,177.43,0.00022,2]
[314319781,1708181929286,160.0,0.00024779,120]
[314319782,1708181929516,160.0,0.00027877,120]
[314319783,1708181929736,160.0,0.00030974,120]
[314319784,1708181952494,181.46,0.00024231,10]
[314319785,1708182059692,299.99,0.0002299,7]
[314319786,1708182128328,1282.44,0.00022354,2]
[314319787,1708182147017,200.0,0.00022309,2]
[314319788,1708182148463,180.43,0.00022309,2]
[314319789,1708182169316,155.0,0.00022354,2]
[314319790,1708182185313,155.0,0.00022354,2]
[314319791,1708182197606,200.0,0.00022134,2]
[314319792,1708182203314,155.0,0.00022354,2]
[314319793,1708182203760,1088.77,0.00020216,2]
[314319794,1708182223346,155.0,0.00022354,2]
[314319795,1708182233030,859.16,0.00022061,2]
[314319796,1708182243439,155.0,0.00022354,2]
[314319797,1708182254157,750.0,0.00022061,2]
[314319798,1708182261205,693.34,0.00022061,2]
[314319799,1708182263364,156.89058219,0.00022061,2]
[314319800,1708182272746,1852.42,0.00022093,2]
[314319801,1708182315725,500.0,0.00022161,2]
[314319802,1708182328614,250.0,0.0002217,2]
[314319803,1708182334155,-250.64,0.00022474,2]
[314319804,1708182341546,208.20948336,0.000224,2]
[314319805,1708182344103,141.15051664,0.00022206,2]
[314319806,1708182344128,8.84948336,0.00022206,2]
[314319807,1708182357437,4123.23,0.00022206,2]
[314319808,1708182403931,23900.0,0.0002218,2]
[314319809,1708182428602,500.0,0.0002218,2]
[314319810,1708182440192,181.46,0.0002218,10]
[314319811,1708182440389,181.46,0.00024354,10]
[314319812,1708182446247,1277.47,0.0002218,2]
[314319813,1708182447722,152.19,0.0002218,2]
[314319814,1708182484332,500.0,0.0002218,2]
[314319815,1708182491904,313.66,0.00022346,2]
[314319816,1708182502345,2000.0,0.00021861,2]
[314319817,1708182509380,7777.34,0.00021861,2]
[314319818,1708182511478,2459.1,0.00021861,2]
[314319819,1708182548377,250.0,0.00021918,2]
[314319820,1708182564057,177.43,0.00022,2]
[314319821,1708182587519,2034.39579832,0.000224,2]
[314319822,1708182600316,7343.55319274,0.000224,2]
[314319828,1708182631494,-300.0,0.00022408,2]
[314319829,1708182631508,-13.66,0.00022408,2]
[314319830,1708182631518,-200.88787043,0.00022433,2]
[314319831,1708182631529,-200.88787041,0.00022458,2]
[314319832,1708182631540,-8.41925917,0.00022469,2]
[314319833,1708182631755,-305.24074083,0.00022469,2]
[314319834,1708182631764,-1088.77,0.0002248,2]
[314319835,1708182631773,-161.61243119,0.0002248,2]
[314319836,1708182631782,-161.61243119,0.0002248,2]
[314319837,1708182631792,-161.61243119,0.0002248,2]
[314319838,1708182631801,-150.7883176,0.00022482,2]
[314319839,1708182631822,-50.09955281,0.00022482,2]
[314319840,1708182631831,-200.88787041,0.00022507,2]
[314319841,1708182631841,-313.66,0.0002253,2]
[314319842,1708182631856,-200.88787041,0.00022531,2]
[314319843,1708182631866,-150.0,0.00022532,2]
[314319844,1708182631875,-8745.16709037,0.00022533,2]
[314319847,1708182631895,-1312.90177721,0.00022533,2]
[314319848,1708182631907,-691.59727248,0.00022533,2]
[314319849,1708182631923,-922.64385994,0.00022533,2]
[314319850,1708182631934,-177.43,0.00022548,2]
[314319851,1708182631943,-200.88787041,0.00022556,2]
[314319852,1708182631953,-48945.80689679,0.00022579,2]
[314319853,1708182631962,-200.88787041,0.0002258,2]
[314319854,1708182631973,-204.23833728,0.00022587,2]
[314319855,1708182631983,-349.74,0.00022589,2]
[314319856,1708182631992,-1716.58856408,0.00022589,2]
[314319857,1708182632004,-1138.31996974,0.00022589,2]
[314319858,1708182632017,-294.88375833,0.00022589,2]
[314319859,1708182632028,-346.22644076,0.00022589,2]
[314319860,1708182632044,-3958.14126709,0.00022589,2]
[314319861,1708182632055,-352.78,0.00022589,2]
[314319862,1708182632064,-774.81221291,0.00022589,2]
[314319867,1708182637526,-2467.61778709,0.00022589,2]
[314319868,1708182637536,-105.81810291,0.00022589,2]
[314319869,1708182637548,-1658.84489,0.00022589,2]
[314319870,1708182637650,-7220.79700709,0.00022589,2]
[314319871,1708182637659,-33558.8028,0.00022589,2]
[314319872,1708182637668,-313.66,0.00022592,2]
[314319873,1708182637677,-235.46768901,0.000226,2]
[314319874,1708182637686,-200.88787041,0.00022605,2]
[314319875,1708182637695,-200.88787041,0.0002263,2]
[314319876,1708182637704,-313.66,0.00022653,2]
[314319877,1708182637714,-200.88787041,0.00022654,2]
[314319878,1708182637723,-200.88787041,0.00022679,2]
[314319879,1708182637733,-200.88787041,0.00022703,2]
[314319880,1708182637742,-313.66,0.00022714,2]
[314319881,1708182637751,-200.88787041,0.00022728,2]
[314319882,1708182637760,-324.5,0.0002274,2]
[314319883,1708182637769,-200.88787041,0.00022753,2]
[314319884,1708182637778,-47130.0,0.0002277,2]
[314319885,1708182637787,-313.66,0.00022775,2]
[314319886,1708182637797,-200.88787041,0.00022777,2]
[314319887,1708182637806,-3553.72691848,0.000228,2]
[314319888,1708182637815,-150.99,0.000228,2]
[314319889,1708182637824,-278.92,0.000228,2]
[314319890,1708182637833,-499.99,0.000228,2]
[314319891,1708182637842,-15871.87,0.000228,2]
[314319892,1708182637851,-390.9,0.000228,2]
[314319893,1708182637864,-200.88787041,0.00022802,2]
[314319894,1708182637872,-200.88787041,0.00022826,2]
[314319895,1708182637881,-313.66,0.00022837,2]
[314319896,1708182637890,-167.18,0.00022847,2]
[314319897,1708182637899,-169.84,0.0002285,2]
[314319898,1708182637908,-200.88787041,0.00022851,2]
[314319899,1708182637918,-200.88787041,0.00022875,2]
[314319900,1708182637927,-313.99,0.0002289,2]
[314319901,1708182637935,-313.66,0.00022898,2]
[314319902,1708182637945,-181.58261503,0.000229,2]
[314319903,1708182637955,-1438.3558985,0.000229,2]
[314319904,1708182637964,-200.88787041,0.000229,2]
[314319905,1708182637974,-1838.65,0.00022919,2]
[314319906,1708182637984,-311.89,0.00022943,2]
[314319907,1708182637993,-1537.88,0.00022943,2]
[314319908,1708182638003,-313.66,0.00022959,2]
[314319909,1708182638014,-47692.26,0.0002299,2]
[314319910,1708182638023,-247.81390561,0.0002299,2]
[314319911,1708182638033,-98575.71313493,0.00023,2]
[314319912,1708182638042,-1650082.09176563,0.00023,2]
[314319913,1708182638051,-313.66,0.00023021,2]
[314319914,1708182638061,-1838.65,0.00023039,2]
[314319915,1708182638071,-313.66,0.00023082,2]
[314319916,1708182638081,-177.43,0.00023096,2]
[314319917,1708182638092,-1986.68,0.0002312,2]
[314319918,1708182638102,-313.66,0.00023143,2]
[314319919,1708182638116,-1838.65,0.0002316,2]
[314319920,1708182638126,-4282.46067838,0.000232,2]
[314319921,1708182638135,-313.66,0.00023204,2]
[314319922,1708182638144,-313.66,0.00023266,2]
[314319923,1708182638153,-1838.65,0.0002328,2]
[314319924,1708182638163,-313.66,0.00023327,2]
[314319925,1708182638172,-313.66,0.00023388,2]
[314319926,1708182638181,-1838.65,0.00023401,2]
[314319927,1708182638368,-313.66,0.0002345,2]
[314319928,1708182638378,-313.66,0.00023511,2]
[314319929,1708182638387,-1838.65,0.00023522,2]
[314319930,1708182638397,-200.0,0.00023529,2]
[314319931,1708182638407,-1838.65,0.00023642,2]
[314319932,1708182638417,-177.43,0.00023644,2]
[314319933,1708182638427,-300.0,0.00023679,2]
[314319934,1708182638436,-180.43,0.00023679,2]
[314319935,1708182638447,-250.64,0.00023723,2]
[314319936,1708182638456,-1838.65,0.00023763,2]
[314319937,1708182638465,-858.2,0.00023775,2]
[314319938,1708182638474,-1838.65,0.00023884,2]
[314319939,1708182638483,-249.95887282,0.00023904,2]
[314319940,1708182638493,-43476.0,0.00024,2]
[314319941,1708182638502,-1838.65,0.00024004,2]
[314319942,1708182638512,-1783.55770488,0.00024025,2]
[314319943,1708182638521,-1573.82862044,0.00024025,2]
[314319944,1708182638531,-574.31022606,0.00024025,2]
[314319945,1708182638540,-6700.54,0.00024084,2]
[314319946,1708182638549,-1838.65,0.00024125,2]
[314319947,1708182638559,-177.43,0.00024192,2]
[314319948,1708182638568,-1838.65,0.00024245,2]
[314319949,1708182638577,-1140.64,0.00024277,2]
[314319950,1708182638586,-1838.65,0.00024366,2]
[314319951,1708182638596,-3635.0,0.00024384,2]
[314319952,1708182638606,-1838.65,0.00024487,2]
[314319953,1708182638615,-1838.65,0.00024607,2]
[314319954,1708182638624,-858.2,0.00024616,2]
[314319955,1708182638634,-500.0,0.00024658,2]
[314319956,1708182638643,-250.0,0.00024658,2]
[314319957,1708182638652,-1838.65,0.00024728,2]
[314319958,1708182638662,-177.43,0.0002474,2]
[314319959,1708182638671,-1088.77,0.00024744,2]
[314319960,1708182638680,-210.0,0.00024785,2]
[314319961,1708182638689,-1838.65,0.00024849,2]
[314319962,1708182638699,-1838.65,0.00024969,2]
[314319963,1708182638708,-250.64,0.00024972,2]
[314319964,1708182638717,-1593.45591278,0.00025,2]
[314319965,1708182638727,-300.0,0.00025049,2]
[314319966,1708182638736,-180.43,0.00025049,2]
[314319967,1708182638745,-409.54,0.00025068,2]
[314319968,1708182638754,-1838.65,0.0002509,2]
[314319969,1708182638763,-42471.41888216,0.0002509,2]
[314319970,1708182638771,-22986.82732132,0.0002509,2]
[314319971,1708182638780,-154.95087158,0.0002509,2]
[314319972,1708182638790,-3139.6141823,0.000251,2]
[314319973,1708182638800,-1838.65,0.00025211,2]
[314319974,1708182638809,-177.43,0.00025288,2]
[314319975,1708182638819,-1000.0,0.00025322,2]
[314319976,1708182638828,-800.0,0.00025425,2]
[314319977,1708182638840,-858.2,0.00025457,2]
[314319978,1708182638849,-275.70955128,0.0002549,2]
[314319979,1708182638860,-1140.64,0.00025491,2]
[314319980,1708182638871,-205.0,0.00025647,2]
[314319981,1708182638880,-6700.54,0.00025728,2]
[314319982,1708182638890,-177.43,0.00025836,2]
[314319983,1708182638899,-4198.72592565,0.00026,2]
[314319984,1708182638908,-202.31004452,0.00026,2]
[314319985,1708182638918,-150.0,0.00026079,2]
[314319986,1708182638927,-166.91,0.00026219,2]
[314319987,1708182638936,-250.64,0.0002622,2]
[314319988,1708182638945,-858.2,0.00026298,2]
[314319989,1708182638954,-23323.97998129,0.000263,2]
[314319990,1708182638963,-177.43,0.00026384,2]
[314319991,1708182638973,-1140.64,0.00026705,2]
[314319992,1708182638983,-1438.35589848,0.000269,3]
[314319993,1708182638995,-177.43,0.00026932,2]
[314319994,1708182639005,-1088.77,0.00027007,2]
[314319995,1708182639018,-858.2,0.00027139,2]
[314319996,1708182639027,-2468.13258941,0.000272,2]
[314319997,1708182639036,-293.0,0.00027264,2]
[314319998,1708182639046,-2427.05,0.00027292,2]
[314319999,1708182639055,-6700.54,0.00027372,2]
[314320000,1708182639065,-302.81215118,0.00027397,5]
[314320001,1708182639076,-155.0,0.00027397,2]
[314320002,1708182639085,-150.0,0.00027397,2]
[314320003,1708182639096,-3000.0,0.00027397,2]
[314320004,1708182639107,-3000.0,0.00027397,2]
[314320005,1708182639117,-3000.0,0.00027397,2]
[314320006,1708182639127,-3000.0,0.00027397,2]
[314320007,1708182639137,-3000.0,0.00027397,2]
[314320008,1708182639147,-3000.0,0.00027397,2]
[314320009,1708182639156,-3000.0,0.00027397,2]
[314320010,1708182639166,-3000.0,0.00027397,2]
[314320011,1708182639176,-3000.0,0.00027397,2]
[314320012,1708182639186,-3000.0,0.00027397,2]
[314320013,1708182639196,-3000.0,0.00027397,2]
[314320014,1708182639205,-3000.0,0.00027397,2]
[314320015,1708182639215,-3000.0,0.00027397,2]
[314320017,1708182639224,-3000.0,0.00027397,2]
[314320018,1708182639233,-4842.90253915,0.00027397,2]
[314320020,1708182639243,-31936.96,0.00027397,2]
[314320021,1708182639252,-1091.35,0.00027397,2]
[314320022,1708182639261,-250.64,0.00027469,2]
[314320023,1708182639271,-177.43,0.0002748,2]
[314320024,1708182639281,-1091.35,0.00027556,2]
[314320025,1708182639291,-1091.35,0.00027714,2]
[314320026,1708182639300,-1091.35,0.00027872,2]
[314320027,1708182639309,-1140.64,0.00027919,2]
[314320028,1708182639319,-150.0,0.00027945,2]
[314320029,1708182639328,-858.2,0.0002798,2]
[314320030,1708182639337,-43494.79971123,0.00028,2]
[314320031,1708182639346,-3588.10246471,0.00028,2]
[314320032,1708182639355,-346.73926615,0.00028028,2]
[314320033,1708182639364,-1091.35,0.0002803,2]
[314320034,1708182639373,-1091.35,0.00028189,2]
[314320035,1708182639382,-1091.35,0.00028347,2]
[314320036,1708182639392,-1000.0,0.00028488,2]
[314320037,1708182639402,-150.0,0.00028493,2]
[314320038,1708182639411,-1091.35,0.00028505,2]
[314320039,1708182639420,-1091.35,0.00028664,2]
[314320040,1708182639430,-250.64,0.00028717,2]
[314320041,1708182639439,-800.0,0.0002874,2]
[314320042,1708182639448,-155.0,0.00028767,2]
[314320043,1708182639457,-858.2,0.0002882,2]
[314320044,1708182639467,-1091.35,0.00028822,2]
[314320045,1708182639476,-150.0,0.00029,2]
[314320046,1708182639486,-222.0878001,0.00029,2]
[314320047,1708182639496,-256.70459311,0.00029,20]
[314320048,1708182639505,-6700.54,0.00029015,2]
[314320049,1708182639514,-150.0,0.00029041,2]
[314320050,1708182639525,-1140.64,0.00029133,2]
[314320051,1708182639534,-1088.77,0.00029271,2]
[314320052,1708182639543,-164.11335802,0.00029548,2]
[314320053,1708182639553,-150.0,0.00029589,2]
[314320054,1708182639563,-1150.25924221,0.000299,2]
[314320055,1708182639572,-250.64,0.00029966,2]
[314320056,1708182639581,-401.0,0.0002999,2]
[314320057,1708182639591,-239149.87330039,0.0003,2]
[314320058,1708182639601,-891.62690609,0.0003,4]
[314320059,1708182639611,-1189.15282441,0.0003,4]
[314320060,1708182639619,-205.0,0.0003,2]
[314320061,1708182639629,-298.58449128,0.000301,2]
[314320062,1708182639638,-155.0,0.00030137,2]
[314320063,1708182639647,-150.0,0.00030137,2]
[314320064,1708182639656,-166.91,0.00030546,2]
[314320065,1708182639666,-6700.54,0.00030659,2]
[314320066,1708182639675,-150.0,0.00030685,2]
[314320067,1708182639685,-693.34,0.00030885,2]
[314320068,1708182639694,-1438.35589848,0.000309,5]
[314320069,1708182639703,-150.73300819,0.00030943,2]
[314320070,1708182639713,-250.64,0.00031214,2]
[314320071,1708182639722,-150.0,0.00031233,2]
[314320072,1708182639731,-4925.21006067,0.0003143,4]
[314320073,1708182639741,-155.0,0.00031507,2]
[314320074,1708182639749,-1088.77,0.00031535,2]
[314320075,1708182639758,-168.79,0.00031644,2]
[314320076,1708182639767,-1000.0,0.00031653,2]
[314320077,1708182639776,-178.83894219,0.00031781,2]
[314320078,1708182639785,-254425.705605,0.000318,3]
[314320079,1708182639795,-4396.26985613,0.00032125,2]
[314320080,1708182639805,-1150.25924214,0.00032173,3]
[314320081,1708182639816,-6700.54,0.00032303,2]
[314320082,1708182639825,-250.64,0.00032463,2]
[314320083,1708182639834,-37326.86,0.00032877,2]
[314320084,1708182639843,-155.0,0.00032877,2]
[314320085,1708182639853,-8000.0,0.000329,2]
[314320086,1708182639861,-250.64,0.00033712,2]
[314320087,1708182639870,-1088.77,0.00033799,2]
[314320088,1708182639879,-160.0,0.00034072,120]
[314320089,1708182639888,-7548.0,0.000342,2]
[314320090,1708182639897,-1413.1312,0.00034238,2]
[314320091,1708182639906,-155.0,0.00034247,2]
[314320093,1708182639917,-1150.25924214,0.00034445,6]
[314320094,1708182639925,-810.422589,0.0003452,2]
[314320095,1708182639935,-4515.756241,0.0003452,2]
[314320096,1708182639944,-501.863957,0.0003452,2]
[314320097,1708182639953,-4218.129585,0.0003452,2]
[314320098,1708182639962,-2939.349006,0.0003452,2]
[314320099,1708182639971,-14877.327051,0.0003452,2]
[314320100,1708182639980,-6656.05,0.00034521,2]
[314320101,1708182639989,-1215.633884,0.00034794,2]
[314320102,1708182640000,-6773.634362,0.00034794,2]
[314320103,1708182640010,-752.795936,0.00034794,2]
[314320104,1708182640019,-6327.194377,0.00034794,2]
[314320105,1708182640028,-4409.023509,0.00034794,2]
[314320106,1708182640038,-22315.990576,0.00034794,2]
[314320107,1708182640046,-150.808351,0.000348,3]
[314320108,1708182640055,-1000.0,0.00034818,2]
[314320109,1708182640064,-1438.35589848,0.000349,7]
[314320110,1708182640073,-1326.9421624,0.000349,2]
[314320111,1708182640082,-1326.94216233,0.000349,2]
[314320112,1708182640091,-1326.94216233,0.000349,2]
[314320113,1708182640102,-1326.94216233,0.000349,2]
[314320114,1708182640111,-1326.94216233,0.000349,2]
[314320115,1708182640120,-1326.94216233,0.000349,2]
[314320116,1708182640129,-1326.94216233,0.000349,2]
[314320117,1708182640138,-1326.94216233,0.000349,2]
[314320118,1708182640148,-1620.845179,0.00034931,2]
[314320119,1708182640157,-9031.512482,0.00034931,2]
[314320120,1708182640166,-1003.727914,0.00034931,2]
[314320121,1708182640175,-8436.25917,0.00034931,2]
[314320122,1708182640185,-5878.698012,0.00034931,2]
[314320123,1708182640194,-29754.654102,0.00034931,2]
[314320124,1708182640203,-7291.98510558,0.00035,7]
[314320125,1708182640213,-38661.45884693,0.00035,4]
[314320126,1708182640221,-230.08544777,0.00035,7]
[314320127,1708182640230,-15872.75458595,0.00035,7]
[314320128,1708182640239,-398.90005479,0.00035,2]
[314320129,1708182640249,-348.55768767,0.00035,2]
[314320130,1708182640257,-17035.05449019,0.00035,2]
[314320131,1708182640266,-2026.056474,0.00035068,2]
[314320132,1708182640275,-11289.390603,0.00035068,2]
[314320133,1708182640285,-1254.659893,0.00035068,2]
[314320134,1708182640294,-10545.323962,0.00035068,2]
[314320135,1708182640303,-7348.372515,0.00035068,2]
[314320136,1708182640312,-37193.317627,0.00035068,2]
[314320137,1708182640321,-2836.479064,0.00035342,2]
[314320138,1708182640330,-15805.146844,0.00035342,2]
[314320139,1708182640339,-1756.523851,0.00035342,2]
[314320140,1708182640348,-14763.453547,0.00035342,2]
[314320141,1708182640358,-10287.721521,0.00035342,2]
[314320142,1708182640367,-52070.644678,0.00035342,2]
[314320143,1708182640376,-1326.94216233,0.00035532,2]
[314320144,1708182640385,-7548.6533092,0.000356,2]
[314320145,1708182640395,-500.0,0.00035616,2]
[314320146,1708182640404,-500.0,0.00035616,2]
[314320147,1708182640413,-500.0,0.00035616,2]
[314320148,1708182640422,-500.0,0.00035616,2]
[314320149,1708182640431,-3635.0,0.00035616,2]
[314320150,1708182640440,-1500.0,0.00035616,10]
[314320151,1708182640449,-155.0,0.00035617,2]
[314320152,1708182640458,-6656.05,0.00035798,2]
[314320153,1708182640468,-1227.80553886,0.0003591,5]
[314320154,1708182640477,-150.85,0.00036,7]
[314320155,1708182640486,-1088.77,0.00036063,2]
[314320156,1708182640495,-160.53,0.00036144,2]
[314320157,1708182640504,-100000.0,0.000363,2]
[314320158,1708182640514,-2140.0,0.000363,2]
[314320159,1708182640523,-384.28750007,0.00036301,30]
[314320160,1708182640532,-15877.6719,0.00036319,2]
[314320161,1708182640541,-160.53,0.00036334,2]
[314320162,1708182640550,-5904.0,0.000364,2]
[314320163,1708182640559,-40346.90677439,0.000365,7]
[314320164,1708182640568,-160.53,0.00036524,2]
[314320165,1708182640578,-245000.0,0.00036698,2]
[314320166,1708182640587,-160.53,0.00036714,2]
[314320167,1708182640596,-1150.25924214,0.00036718,9]
[314320168,1708182640607,-14735.26108162,0.00036798,2]
[314320169,1708182640616,-14735.26108158,0.00036798,2]
[314320170,1708182640626,-14735.26108158,0.00036798,2]
[314320171,1708182640635,-14735.26108158,0.00036798,2]
[314320172,1708182640645,-160.53,0.00036905,2]
[314320173,1708182640654,-2551.43713194,0.00036943,2]
[314320174,1708182640663,-155.0,0.00036987,2]
[314320175,1708182640672,-4267.1691272,0.00037,14]
[314320176,1708182640681,-14735.26108158,0.00037019,2]
[314320177,1708182640690,-1783.55770488,0.00037063,2]
[314320178,1708182640699,-1573.82862042,0.00037063,2]
[314320179,1708182640708,-574.31022605,0.00037063,2]
[314320180,1708182640718,-6656.05,0.00037075,2]
[314320181,1708182640727,-160.53,0.00037095,2]
[314320182,1708182640736,-1326.94216233,0.00037111,2]
[314320183,1708182640745,-160.0,0.00037169,120]
[314320184,1708182640754,-160.53,0.00037285,2]
[314320185,1708182640763,-7616.71073017,0.000374,5]
[314320186,1708182640772,-160.53,0.00037475,2]
[314320187,1708182640781,-160.53,0.00037666,2]
[314320188,1708182640791,-180.0,0.00037671,2]
[314320189,1708182640800,-150.85,0.000377,7]
[314320190,1708182640809,-181.58261503,0.00037825,2]
[314320191,1708182640819,-160.53,0.00037856,2]
[314320192,1708182640828,-93676.95,0.00037899,2]
[314320193,1708182640837,-114494.05,0.00037899,2]
[314320194,1708182640846,-620361.712236,0.000379,3]
[314320195,1708182640856,-171382.68,0.000379,2]
[314320196,1708182640865,-1000.0,0.00037984,2]
[314320197,1708182640875,-209.18429795,0.0003799,7]
[314320198,1708182640885,-935.85066898,0.00038,2]
[314320199,1708182640894,-1903763.95679652,0.00038,2]
[314320200,1708182640903,-214.06588635,0.00038,4]
[314320201,1708182640912,-160.53,0.00038046,2]
[314320202,1708182640921,-160.53,0.00038236,2]
[314320203,1708182640931,-1088.77,0.00038327,2]
[314320204,1708182640940,-6656.05,0.00038352,2]
[314320205,1708182640949,-201.70261338,0.00038356,2]
[314320206,1708182640959,-155.62,0.00038356,2]
[314320207,1708182640968,-205.35,0.00038356,15]
[314320208,1708182640977,-201.59,0.00038356,2]
[314320209,1708182640986,-155.0,0.00038357,2]
[314320210,1708182640997,-160.53,0.00038426,2]
[314320211,1708182641008,-2427.05,0.00038525,2]
[314320213,1708182641017,-160.53,0.00038617,2]
[314320215,1708182641026,-1326.94216233,0.00038689,2]
[314320217,1708182641035,-160.53,0.00038807,2]
[314320219,1708182641045,-1001.77650296,0.00038889,5]
[314320221,1708182641054,-1438.35589848,0.000389,9]
[314320223,1708182641063,-325.84,0.00038981,3]
[314320224,1708182641072,-1150.25924214,0.00038991,12]
[314320226,1708182641082,-160.53,0.00038997,2]
[314320228,1708182641091,-1117.49775332,0.00039,40]
[314320230,1708182641100,-160.53,0.00039187,2]
[314320232,1708182641112,-156.15,0.0003926,2]
[314320234,1708182641121,-160.53,0.00039377,2]
[314320237,1708182641130,-160.53,0.00039568,2]
[314320239,1708182641140,-150.85,0.000396,7]
[314320240,1708182641149,-6656.05,0.0003963,2]
[314320243,1708182641158,-21724.07687651,0.000397,4]
[314320244,1708182641168,-155.0,0.00039727,2]
[314320247,1708182641177,-160.53,0.00039758,2]
[314320249,1708182641186,-4459.68519724,0.000398,7]
[314320251,1708182641195,-1270.47860103,0.00039891,2]
[314320253,1708182641204,-195.53,0.00039989,10]
[314320254,1708182641213,-238.50154243,0.00039999,31]
[314320256,1708182641223,-308.68878561,0.00039999,31]
[314320258,1708182641232,-500.0,0.00039999,31]
[314320261,1708182641241,-500.0,0.00039999,31]
[314320263,1708182641251,-151.87339131,0.00039999,31]
[314320265,1708182641260,-155.0,0.0004,4]
[314320266,1708182641270,-159.61444784,0.0004,30]
[314320268,1708182641279,-1148.48046046,0.0004,2]
[314320270,1708182641288,-119458.14296236,0.0004,30]
[314320272,1708182641297,-2645.01335604,0.0004,2]
[314320274,1708182641307,-255.0,0.0004,12]
[314320277,1708182641316,-255.0,0.0004,12]
[314320278,1708182641325,-680.60466879,0.0004,4]
[314320280,1708182641334,-255.0,0.0004,12]
[314320282,1708182641343,-255.0,0.0004,12]
[314320284,1708182641352,-255.0,0.0004,12]
[314320286,1708182641362,-1326.94216233,0.00040268,5]
[314320288,1708182641372,-152.0,0.00040377,3]
[314320290,1708182641381,-1000.0,0.00040495,2]
[314320293,1708182641390,-14735.26108158,0.00040549,2]
[314320295,1708182641400,-1088.77,0.00040591,2]
[314320296,1708182641409,-156.15,0.00040733,2]
[314320298,1708182641418,-238.19867172,0.00041,30]
[314320300,1708182641427,-800.0,0.00041,2]
[314320303,1708182641436,-166.0,0.00041,2]
[314320305,1708182641446,-150.1,0.00041,3]
[314320320,1708182641455,-66019.60119702,0.00041068,2]
[314320322,1708182641595,-23017.94119475,0.00041068,32]
[314320323,1708182641605,-1103.54391099,0.00041068,3]
[314320324,1708182641615,-15931.47244674,0.00041068,2]
[314320325,1708182641624,-275.15622716,0.00041068,30]
[314320326,1708182641634,-216.5760994,0.00041068,30]
[314320327,1708182641643,-155.56468996,0.00041068,120]
[314320328,1708182641653,-5358.94753529,0.00041068,2]
[314320329,1708182641663,-283.32387974,0.00041068,2]
[314320330,1708182641672,-468.77508963,0.00041068,2]
[314320331,1708182641682,-159.35404023,0.00041068,30]
[314320332,1708182641692,-155.39982316,0.00041068,2]
[314320334,1708182641703,-385.13127339,0.00041068,2]
[314320336,1708182641713,-18635.4757887,0.00041068,2]
[314320338,1708182641722,-5095.71440095,0.00041068,4]
[314320340,1708182641733,-32666.56886121,0.00041068,120]
[314320341,1708182641743,-201.59239623,0.00041068,120]
[314320342,1708182641753,-466.0482353,0.00041068,2]
[314320343,1708182641763,-656.47572142,0.00041068,2]
[314320344,1708182641772,-311.01975504,0.00041068,2]
[314320345,1708182641782,-1224.17933206,0.00041068,4]
[314320346,1708182641791,-2543.56387118,0.00041068,2]